lending/lending_fUSD_20250808
["ID","MTS","AMOUNT","RATE_DAILY","PERIOD"]
[377994040,1754655036414,-685.53,0.00018762,2]
[377994041,1754655036423,-497.67,0.00018762,2]
[377994042,1754655036433,-400.0,0.00018762,2]
[377994043,1754655036443,-636.49,0.00018762,2]
[377994044,1754655036453,-400.0,0.00018762,2]
[377994045,1754655036463,-400.0,0.00018762,2]
[377994046,1754655036473,-447.00287232,0.00018762,2]
[377994047,1754655036486,-43.33712768,0.00018762,2]
[377994048,1754655036496,-400.0,0.00018762,2]
[377994049,1754655036506,-214.91287232,0.00018762,2]
[377994050,1754655036522,-387.5599993,0.00018762,2]
[377994051,1754655036545,-294.95712838,0.00018762,2]
[377994052,1754655036558,-216.76233007,0.00018762,2]
[377994053,1754655036574,-326.20766993,0.00018762,2]
[377994054,1754655036586,-533.91,0.00018762,2]
[377994055,1754655036596,-400.0,0.00018762,2]
[377994056,1754655036606,-400.0,0.00018762,2]
[377994057,1754655036616,-400.0,0.00018762,2]
[377994058,1754655036628,-400.0,0.00018762,2]
[377994059,1754655036637,-400.0,0.00018762,2]
[377994060,1754655036647,-400.0,0.00018762,2]
[377994061,1754655036657,-400.0,0.00018762,2]
[377994062,1754655036667,-500.0,0.00018762,2]
[377994063,1754655036676,-511.97,0.00018762,2]
[377994064,1754655036686,-400.0,0.00018762,2]
[377994065,1754655036696,-698.76,0.00018762,2]
[377994066,1754655036706,-400.0,0.00018762,2]
[377994067,1754655036715,-400.0,0.00018762,2]
[377994068,1754655036724,-400.0,0.00018762,2]
[377994069,1754655036734,-544.97,0.00018762,2]
[377994070,1754655036743,-400.0,0.00018762,2]
[377994071,1754655036753,-400.0,0.00018762,2]
[377994072,1754655036762,-580.93,0.00018762,2]
[377994073,1754655036772,-400.0,0.00018762,2]
[377994074,1754655036782,-400.0,0.00018762,2]
[377994075,1754655036794,-517.1561693,0.00018762,2]
[377994076,1754655036806,-535.8838307,0.00018762,2]
[377994077,1754655036816,-400.0,0.00018762,2]
[377994078,1754655036826,-420.65,0.00018762,2]
[377994079,1754655036836,-400.0,0.00018762,2]
[377994080,1754655036845,-648.26,0.00018762,2]
[377994081,1754655036856,-414.86,0.00018762,2]
[377994082,1754655036865,-448.15,0.00018762,2]
[377994083,1754655036875,-400.0,0.00018762,2]
[377994084,1754655036885,-1086.51,0.00018762,2]
[377994085,1754655036894,-621.53,0.00018762,2]
[377994086,1754655036904,-572.57,0.00018762,2]
[377994087,1754655036913,-793.17,0.00018762,2]
[377994088,1754655036923,-400.0,0.00018762,2]
[377994089,1754655036933,-400.0,0.00018762,2]
[377994090,1754655036942,-833.78,0.00018762,2]
[377994091,1754655036952,-400.0,0.00018762,2]
[377994092,1754655036961,-400.0,0.00018762,2]
[377994093,1754655036970,-400.0,0.00018762,2]
[377994094,1754655036980,-400.0,0.00018762,2]
[377994095,1754655036990,-462.29,0.00018762,2]
[377994096,1754655037000,-598.44,0.00018762,2]
[377994097,1754655037010,-646.90616929,0.00018762,2]
[377994098,1754655037022,-148.95383071,0.00018762,2]
[377994099,1754655037031,-613.35,0.00018762,2]
[377994100,1754655037045,-400.0,0.00018762,2]
[377994101,1754655037055,-767.19,0.00018762,2]
[377994102,1754655037064,-118.90353392,0.00018762,2]
[377994103,1754655037076,-276.9810867,0.00018762,2]
[377994106,1754655037734,1219.83,0.00017684,2]
[377994143,1754655038215,-174.4225622,0.00018662,2]
[377994144,1754655038224,-86.50537938,0.00018762,2]
[377994145,1754655038234,-400.0,0.00018762,2]
[377994146,1754655038243,-234.6085194,0.00018762,2]
[377994148,1754655040301,-659.6314806,0.00018762,2]
[377994149,1754655040310,-400.0,0.00018762,2]
[377994150,1754655040319,-400.0,0.00018762,2]
[377994151,1754655040328,-565.16,0.00018762,2]
[377994152,1754655040338,-400.0,0.00018762,2]
[377994153,1754655040347,-296.6459337,0.00018762,2]
[377994166,1754655042403,-586.59,0.00018761,2]
[377994167,1754655042412,-400.0,0.00018761,2]
[377994168,1754655042422,-103.3540663,0.00018762,2]
[377994169,1754655042431,-1027.04,0.00018762,2]
[377994170,1754655042440,-538.63,0.00018762,2]
[377994171,1754655042450,-609.36,0.00018762,2]
[377994172,1754655042459,-400.0,0.00018762,2]
[377994173,1754655042468,-427.18,0.00018762,2]
[377994174,1754655042478,-1146.93,0.00018762,2]
[377994175,1754655042487,-400.0,0.00018762,2]
[377994176,1754655042496,-54.57167815,0.00018762,2]
[377994177,1754655042788,-1158.74832185,0.00018762,2]
[377994178,1754655042799,-503.89,0.00018762,2]
[377994179,1754655042808,-400.0,0.00018762,2]
[377994180,1754655042817,-400.0,0.00018762,2]
[377994181,1754655042826,-401.32,0.00018762,2]
[377994182,1754655042835,-400.0,0.00018762,2]
[377994184,1754655042844,-908.22,0.00018762,2]
[377994186,1754655042853,-400.0,0.00018762,2]
[377994188,1754655042862,-410.47,0.00018762,2]
[377994189,1754655042871,-400.0,0.00018762,2]
[377994190,1754655042880,-521.56,0.00018762,2]
[377994191,1754655042889,-493.98,0.00018762,2]
[377994193,1754655042898,-400.0,0.00018762,2]
[377994195,1754655042907,-400.0,0.00018762,2]
[377994197,1754655042916,-1444.77,0.00018762,2]
[377994198,1754655042925,-403.83,0.00018762,2]
[377994199,1754655042935,-746.78,0.00018762,2]
[377994200,1754655042943,-503.36,0.00018762,2]
[377994202,1754655042953,-400.0,0.00018762,2]
[377994204,1754655042962,-566.95,0.00018762,2]
[377994206,1754655042971,-570.07,0.00018762,2]
[377994208,1754655042981,-524.77,0.00018762,2]
[377994210,1754655042990,-807.95,0.00018762,2]
[377994212,1754655042999,-522.61,0.00018762,2]
[377994214,1754655043008,-163.823607,0.00018762,2]
[377994216,1754655043017,-400.0,0.00018762,2]
[377994218,1754655043027,-400.0,0.00018762,2]
[377994220,1754655043036,-699.82,0.00018762,2]
[377994222,1754655043046,-673.23,0.00018762,2]
[377994224,1754655043056,-476.21,0.00018762,2]
[377994226,1754655043065,-546.0,0.00018762,2]
[377994228,1754655043075,-725.31,0.00018762,2]
[377994230,1754655043083,-400.0,0.00018762,2]
[377994232,1754655043092,-400.0,0.00018762,2]
[377994234,1754655043102,-689.58,0.00018762,2]
[377994236,1754655043111,-400.0,0.00018762,2]
[377994238,1754655043120,-517.35,0.00018762,2]
[377994240,1754655043130,-400.0,0.00018762,2]
[377994242,1754655043139,-644.94,0.00018762,2]
[377994244,1754655043148,-400.0,0.00018762,2]
[377994246,1754655043157,-400.0,0.00018762,2]
[377994248,1754655043166,-179.78535754,0.00018762,2]
[377994250,1754655043176,-1074.25,0.00018762,2]
[377994252,1754655043186,-590.51,0.00018762,2]
[377994254,1754655043196,-400.0,0.00018762,2]
[377994256,1754655043204,-400.0,0.00018762,2]
[377994258,1754655043213,-400.0,0.00018762,2]
[377994260,1754655043223,-1029.05,0.00018762,2]
[377994262,1754655043232,-400.0,0.00018762,2]
[377994264,1754655043242,-400.0,0.00018762,2]
[377994266,1754655043252,-400.0,0.00018762,2]
[377994268,1754655043261,-400.0,0.00018762,2]
[377994270,1754655043271,-650.15,0.00018762,2]
[377994272,1754655043280,-596.47,0.00018762,2]
[377994274,1754655043289,-546.44,0.00018762,2]
[377994276,1754655043299,-699.7,0.00018762,2]
[377994278,1754655043308,-400.0,0.00018762,2]
[377994279,1754655043317,-400.0,0.00018762,2]
[377994281,1754655043327,-538.62,0.00018762,2]
[377994283,1754655043336,-1220.89,0.00018762,2]
[377994285,1754655043345,-400.0,0.00018762,2]
[377994287,1754655043355,-470.54,0.00018762,2]
[377994289,1754655043364,-634.04,0.00018762,2]
[377994291,1754655043374,-750.91,0.00018762,2]
[377994293,1754655043383,-400.0,0.00018762,2]
[377994296,1754655043393,-400.0,0.00018762,2]
[377994298,1754655043402,-750.85,0.00018762,2]
[377994300,1754655043411,-400.0,0.00018762,2]
[377994302,1754655043425,-754.85,0.00018762,2]
[377994304,1754655043434,-400.0,0.00018762,2]
[377994306,1754655043443,-449.68,0.00018762,2]
[377994308,1754655043452,-706.47,0.00018762,2]
[377994310,1754655043462,-734.9,0.00018762,2]
[377994312,1754655043471,-400.0,0.00018762,2]
[377994314,1754655043480,-400.0,0.00018762,2]
[377994316,1754655043489,-400.0,0.00018762,2]
[377994318,1754655043498,-611.5,0.00018762,2]
[377994320,1754655043508,-400.0,0.00018762,2]
[377994322,1754655043517,-416.14,0.00018762,2]
[377994324,1754655043528,-640.8,0.00018762,2]
[377994326,1754655043538,-640.16,0.00018762,2]
[377994328,1754655043551,-400.0,0.00018762,2]
[377994330,1754655043563,-400.0,0.00018762,2]
[377994332,1754655043573,-400.0,0.00018762,2]
[377994334,1754655043582,-400.0,0.00018762,2]
[377994336,1754655043591,-937.98,0.00018762,2]
[377994338,1754655043601,-400.0,0.00018762,2]
[377994340,1754655043610,-400.0,0.00018762,2]
[377994342,1754655043619,-733.69,0.00018762,2]
[377994344,1754655043629,-710.86,0.00018762,2]
[377994345,1754655043638,-571.7,0.00018762,2]
[377994347,1754655043647,-1103.9,0.00018762,2]
[377994350,1754655043658,-400.0,0.00018762,2]
[377994351,1754655043667,-400.0,0.00018762,2]
[377994353,1754655043676,-400.0,0.00018762,2]
[377994355,1754655043685,-840.69,0.00018762,2]
[377994357,1754655043694,-400.0,0.00018762,2]
[377994359,1754655043703,-400.0,0.00018762,2]
[377994361,1754655043712,-619.68,0.00018762,2]
[377994363,1754655043722,-575.58,0.00018762,2]
[377994365,1754655043731,-400.0,0.00018762,2]
[377994367,1754655043741,-1007.18,0.00018762,2]
[377994369,1754655043750,-2657.05,0.00018762,2]
[377994371,1754655043759,-503.23,0.00018762,2]
[377994373,1754655043769,-468.36,0.00018762,2]
[377994375,1754655043778,-400.0,0.00018762,2]
[377994377,1754655043787,-400.0,0.00018762,2]
[377994379,1754655043798,-400.0,0.00018762,2]
[377994381,1754655043807,-400.0,0.00018762,2]
[377994383,1754655043816,-400.0,0.00018762,2]
[377994385,1754655043826,-955.08,0.00018762,2]
[377994387,1754655043835,-430.59,0.00018762,2]
[377994389,1754655043845,-593.66,0.00018762,2]
[377994391,1754655043854,-1024.0,0.00018762,2]
[377994393,1754655043863,-468.3,0.00018762,2]
[377994395,1754655043873,-408.29775913,0.00018762,2]
[377994397,1754655043882,-532.17,0.00018762,2]
[377994399,1754655043891,-759.9,0.00018762,2]
[377994401,1754655043901,-400.0,0.00018762,2]
[377994403,1754655043911,-400.0,0.00018762,2]
[377994405,1754655043920,-400.0,0.00018762,2]
[377994407,1754655043929,-400.0,0.00018762,2]
[377994409,1754655043939,-710.84,0.00018762,2]
[377994411,1754655043947,-400.0,0.00018762,2]
[377994413,1754655043957,-1352.18,0.00018762,2]
[377994415,1754655043966,-606.54,0.00018762,2]
[377994417,1754655043975,-435.2,0.00018762,2]
[377994419,1754655043984,-457.07,0.00018762,2]
[377994421,1754655043993,-400.0,0.00018762,2]
[377994423,1754655044003,-914.14,0.00018762,2]
[377994425,1754655044012,-569.41,0.00018762,2]
[377994427,1754655044021,-793.39,0.00018762,2]
[377994429,1754655044030,-400.0,0.00018762,2]
[377994431,1754655044039,-1061.59,0.00018762,2]
[377994433,1754655044049,-177.92574217,0.00018762,2]
[377994435,1754655044058,-499.86,0.00018762,2]
[377994437,1754655044068,-680.06,0.00018762,2]
[377994439,1754655044078,-842.74,0.00018762,2]
[377994441,1754655044087,-1117.51,0.00018762,2]
[377994443,1754655044097,-539.79,0.00018762,2]
[377994445,1754655044106,-400.0,0.00018762,2]
[377994447,1754655044115,-175.722073,0.00018762,2]
[377994449,1754655044125,-400.0,0.00018762,2]
[377994451,1754655044134,-400.0,0.00018762,2]
[377994453,1754655044144,-1448.64,0.00018762,2]
[377994455,1754655044153,-508.59,0.00018762,2]
[377994457,1754655044162,-924.28,0.00018762,2]
[377994459,1754655044171,-400.0,0.00018762,2]
[377994461,1754655044180,-400.0,0.00018762,2]
[377994463,1754655044190,-974.98,0.00018762,2]
[377994465,1754655044199,-1173.32,0.00018762,2]
[377994467,1754655044208,-214.543392,0.00018762,2]
[377994469,1754655044218,-615.38,0.00018762,2]
[377994471,1754655044227,-829.26,0.00018762,2]
[377994473,1754655044236,-546.08,0.00018762,2]
[377994475,1754655044245,-400.0,0.00018762,2]
[377994477,1754655044255,-674.08,0.00018762,2]
[377994479,1754655044264,-400.0,0.00018762,2]
[377994480,1754655044273,-853.83,0.00018762,2]
[377994481,1754655044283,-400.0,0.00018762,2]
[377994482,1754655044292,-400.0,0.00018762,2]
[377994483,1754655044301,-757.65,0.00018762,2]
[377994484,1754655044311,-454.5453769,0.00018762,2]
[377994485,1754655044320,-821.45,0.00018762,2]
[377994486,1754655044329,-400.0,0.00018762,2]
[377994487,1754655044339,-400.0,0.00018762,2]
[377994488,1754655044348,-619.94,0.00018763,2]
[377994489,1754655044358,-400.0,0.00018763,2]
[377994490,1754655044367,-410.43,0.00018763,2]
[377994491,1754655044378,-633.78,0.00018763,2]
[377994493,1754655044389,-1289.58,0.00018763,2]
[377994495,1754655044398,-659.01,0.00018763,2]
[377994497,1754655044407,-472.04,0.00018763,2]
[377994498,1754655044417,-400.0,0.00018763,2]
[377994500,1754655044426,-707.61,0.00018763,2]
[377994502,1754655044436,-851.6,0.00018763,2]
[377994505,1754655044445,-1334.12,0.00018763,2]
[377994507,1754655044455,-469.3,0.00018763,2]
[377994509,1754655044464,-1038.52,0.00018763,2]
[377994511,1754655044473,-967.72,0.00018763,2]
[377994512,1754655044483,-1138.28,0.00018763,2]
[377994514,1754655044492,-883.5,0.00018763,2]
[377994516,1754655044501,-682.44,0.00018763,2]
[377994518,1754655044510,-835.72,0.00018763,2]
[377994520,1754655044519,-733.13,0.00018763,2]
[377994522,1754655044530,-770.35,0.00018763,2]
[377994524,1754655044539,-439.11,0.00018763,2]
[377994527,1754655044551,-672.41,0.00018763,2]
[377994529,1754655044563,-400.0,0.00018763,2]
[377994531,1754655044572,-563.22,0.00018763,2]
[377994532,1754655044582,-468.4,0.00018763,2]
[377994535,1754655044593,-1058.11,0.00018763,2]
[377994536,1754655044603,-1002.94,0.00018763,2]
[377994539,1754655044612,-620.98,0.00018763,2]
[377994541,1754655044622,-400.0,0.00018763,2]
[377994543,1754655044631,-592.37,0.00018763,2]
[377994544,1754655044640,-531.89,0.00018763,2]
[377994546,1754655044649,-782.7,0.00018763,2]
[377994548,1754655044659,-1120.34,0.00018763,2]
[377994550,1754655044668,-400.0,0.00018763,2]
[377994552,1754655044677,-638.23,0.00018763,2]
[377994554,1754655044687,-1334.89,0.00018763,2]
[377994556,1754655044696,-400.0,0.00018763,2]
[377994558,1754655044705,-725.9,0.00018763,2]
[377994560,1754655044715,-657.37,0.00018763,2]
[377994562,1754655044724,-1025.47,0.00018763,2]
[377994564,1754655044734,-400.0,0.00018763,2]
[377994566,1754655044743,-428.68,0.00018763,2]
[377994568,1754655044752,-2624.55,0.00018763,2]
[377994570,1754655044761,-842.33,0.00018763,2]
[377994572,1754655044770,-400.0,0.00018763,2]
[377994574,1754655044780,-725.71,0.00018763,2]
[377994576,1754655044790,-449.36,0.00018763,2]
[377994578,1754655044800,-1825.36,0.00018763,2]
[377994580,1754655044809,-434.65,0.00018763,2]
[377994582,1754655044818,-2235.5,0.00018763,2]
[377994584,1754655044827,-964.97,0.00018763,2]
[377994586,1754655044836,-997.25,0.00018763,2]
[377994588,1754655044845,-980.02,0.00018763,2]
[377994590,1754655044855,-966.1,0.00018763,2]
[377994592,1754655044864,-678.81,0.00018763,2]
[377994594,1754655044874,-400.0,0.00018763,2]
[377994596,1754655044883,-5036.43,0.00018763,2]
[377994598,1754655044893,-1273.27,0.00018763,2]
[377994600,1754655044903,-400.0,0.00018763,2]
[377994602,1754655044912,-1042.33,0.00018763,2]
[377994604,1754655044921,-1076.74,0.00018763,2]
[377994606,1754655044931,-150.0,0.00018767,2]
[377994608,1754655044940,-516.1593,0.0001881,2]
[377994610,1754655044949,-150.0,0.00018817,2]
[377994612,1754655044959,-150.0,0.00018818,2]
[377994614,1754655044968,-150.0,0.00018828,2]
[377994616,1754655044977,-793.89834381,0.00018843,2]
[377994618,1754655044987,-150.0,0.00018854,2]
[377994620,1754655044996,-150.0,0.00018863,2]
[377994622,1754655045006,-508.0,0.00018894,2]
[377994624,1754655045015,-151.73772575,0.000189,2]
[377994626,1754655045025,-825.76,0.00018928,2]
[377994628,1754655045035,-1790.92,0.00018928,2]
[377994630,1754655045045,-150.0,0.00018938,2]
[377994632,1754655045055,-150.0,0.00018947,2]
[377994634,1754655045064,-150.0,0.00018948,2]
[377994636,1754655045073,-150.0,0.0001895,2]
[377994638,1754655045083,-150.0,0.00018957,2]
[377994640,1754655045092,-500.0,0.00018973,2]
[377994642,1754655045102,-150.0,0.00018976,2]
[377994644,1754655045111,-211.62674257,0.00018979,2]
[377994647,1754655045121,-842.44706758,0.00018979,2]
[377994649,1754655045130,-457.64618948,0.00018979,2]
[377994651,1754655045140,-150.0,0.00018982,2]
[377994652,1754655045149,-168.0,0.00018987,2]
[377994654,1754655045158,-213.24272787,0.0001899,2]
[377994657,1754655045167,-150.0,0.00018991,2]
[377994659,1754655045177,-400.0,0.00018998,2]
[377994661,1754655045186,-400.0,0.00018999,2]
[377994663,1754655045195,-417.26,0.00018999,2]
[377994665,1754655045204,-429.82,0.00018999,2]
[377994667,1754655045214,-400.0,0.00018999,2]
[377994669,1754655045223,-400.0,0.00018999,2]
[377994671,1754655045232,-1000.0,0.00018999,2]
[377994673,1754655045242,-500.0,0.00018999,2]
[377994675,1754655045251,-500.0,0.00018999,2]
[377994677,1754655045261,-218.05037683,0.00018999,2]
[377994680,1754655045271,-400.0,0.00018999,2]
[377994682,1754655045280,-911.97,0.00018999,2]
[377994684,1754655045291,-993.67,0.00018999,2]
[377994686,1754655045301,-400.0,0.00018999,2]
[377994688,1754655045311,-1411.54,0.00018999,2]
[377994691,1754655045320,-1136537.68281278,0.00019,2]
[377994693,1754655045330,-1627.58,0.00019,2]
[377994694,1754655045340,-834.5398707,0.00019,2]
[377994697,1754655045350,-215.40390578,0.00019,2]
[377994699,1754655045360,-450.17164632,0.00019,2]
[377994700,1754655045369,-528.11,0.00019,2]
[377994702,1754655045379,-27633.026311,0.00019,2]
[377994771,1754655046039,-427.76,0.00018761,2]
[377994773,1754655046050,-78.24,0.00018762,2]
[377994780,1754655046099,302.6,0.00017967,2]
[377995240,1754655226735,638.752003,0.00017999,2]
[377995241,1754655274598,297.02,0.00018007,2]
[377995242,1754655324520,530.01449984,0.00017957,2]
[377995243,1754655542322,338.43,0.00017796,2]
[377995244,1754655555690,531.0,0.00017894,2]
[377995246,1754655639232,397.54,0.00017782,2]
[377995247,1754655702985,1000.0,0.00017768,2]
[377995249,1754655823703,5613.93188144,0.00017752,2]
[377995250,1754655823725,573.76811856,0.00017752,2]
[377995253,1754655870782,543.12,0.00015068,2]
[377995254,1754655870980,543.12,0.00016652,2]
[377995255,1754655916302,250.0,0.00015,2]
[377995256,1754655917441,300.0,0.00017,2]
[377995257,1754655936108,1315.7,0.00017743,2]
[377995258,1754655937533,2019.6575553,9e-05,2]
[377995266,1754655962461,258.08,0.00013699,2]
[377995267,1754655964248,1821.1924447,8e-05,2]
[377995271,1754655993720,1958.76,0.00017743,2]
[377995272,1754656000111,1017.89,0.00017743,2]
[377995274,1754656036450,217.53098603,0.00015,2]
[377995277,1754656068958,280.62,0.00017733,2]
[377995278,1754656079552,3441.23,0.00017733,2]
[377995280,1754656121619,459.33089541,0.000151,2]
[377995281,1754656121641,5101.42910359,0.000151,2]
[377995288,1754656162170,452.68,0.00017739,2]
[377995289,1754656162426,200.0,0.00017739,2]
[377995290,1754656183886,181.94,0.00017739,2]
[377995291,1754656184087,181.94,0.00017748,2]
[377995292,1754656184303,181.94,0.00017757,2]
[377995293,1754656184689,181.94,0.00017767,2]
[377995294,1754656184754,181.94,0.00017776,2]
[377995295,1754656184903,181.94,0.00017785,2]
[377995296,1754656185131,181.94,0.00017795,2]
[377995297,1754656185342,181.94,0.00017804,2]
[377995298,1754656185771,181.94,0.00017813,2]
[377995299,1754656185982,181.94,0.00017823,2]
[377995300,1754656186208,181.94,0.00017832,2]
[377995301,1754656186581,181.94,0.00017841,2]
[377995302,1754656186816,181.94,0.00017851,2]
[377995303,1754656187019,181.94,0.0001786,2]
[377995304,1754656187236,181.94,0.00017869,2]
[377995305,1754656187457,181.94,0.00017879,2]
[377995306,1754656187679,181.94,0.00017888,2]
[377995307,1754656187891,181.94,0.00017897,2]
[377995308,1754656188092,181.94,0.00017907,2]
[377995309,1754656188508,181.94,0.00017916,2]
[377995310,1754656193594,500.0,0.00018007,2]
[377995317,1754656201236,5107.09089641,0.000177,6]
[377995318,1754656201257,14892.90910359,0.000177,6]
[377995327,1754656231603,-166.71,0.00018041,2]
[377995328,1754656231613,-250.0,0.00018043,2]
[377995329,1754656231622,-250.0,0.00018057,2]
[377995330,1754656231632,-543.12,0.00018236,2]
[377995331,1754656231642,-2138.88822631,0.00018356,2]
[377995332,1754656231713,-345.33122446,0.00018356,2]
[377995333,1754656231770,-235.89054923,0.00018356,2]
[377995334,1754656231781,-219.53072765,0.00018429,2]
[377995335,1754656231790,-159.79100321,0.00018449,2]
[377995336,1754656231829,-237.74899679,0.00018449,2]
[377995337,1754656231838,-168.0,0.00018567,2]
[377995338,1754656231848,-452.68,0.00018625,2]
[377995339,1754656231858,-300.0,0.0001865,2]
[377995340,1754656231867,-1200.0,0.0001865,2]
[377995341,1754656231876,-267.46074303,0.00018651,2]
[377995342,1754656231885,-76.77493154,0.00018651,2]
[377995343,1754656231897,-777.13506846,0.00018651,2]
[377995344,1754656231907,-9334.73749021,0.00018651,2]
[377995345,1754656231928,-2104.73765088,0.00018651,2]
[377995346,1754656231960,-359.49890805,0.00018651,2]
[377995347,1754656231971,-1147.32025381,0.00018651,2]
[377995376,1754656237577,-10298.83569705,0.00018651,2]
[377995377,1754656237587,-150.99,0.00018651,2]
[377995378,1754656237596,-9999.99,0.00018651,2]
[377995379,1754656237605,-9030.4,0.00018651,5]
[377995380,1754656237615,-6553.72,0.00018651,2]
[377995381,1754656237624,-499.99,0.00018651,2]
[377995382,1754656237633,-999.99,0.00018651,2]
[377995383,1754656237643,-660.23319427,0.00018661,2]
[377995384,1754656237652,-2840.4706,0.00018662,2]
[377995385,1754656237662,-1000.0,0.00018662,2]
[377995386,1754656237672,-166.49007334,0.00018662,2]
[377995387,1754656237683,-449.8729283,0.00018662,2]
[377995388,1754656237694,-449.87292821,0.00018688,2]
[377995389,1754656237704,-949.31,0.000187,2]
[377995390,1754656237714,-796.74,0.000187,2]
[377995391,1754656237725,-151.0,0.00018707,2]
[377995392,1754656237735,-160.0,0.00018707,2]
[377995393,1754656237745,-449.87292821,0.00018715,2]
[377995394,1754656237755,-168.0,0.00018723,2]
[377995395,1754656237766,-175.47,0.00018732,2]
[377995396,1754656237777,-150.0,0.0001874,2]
[377995397,1754656237787,-449.87292821,0.00018741,2]
[377995398,1754656237796,-318.32,0.00018752,2]
[377995399,1754656237805,-497.59,0.0001876,2]
[377995400,1754656237817,-470.55,0.0001876,2]
[377995401,1754656237828,-842.65,0.0001876,2]
[377995402,1754656237838,-1170.67,0.0001876,2]
[377995403,1754656237848,-1136.28,0.0001876,2]
[377995404,1754656237857,-864.26,0.0001876,2]
[377995405,1754656237867,-428.06,0.0001876,2]
[377995406,1754656237876,-400.0,0.0001876,2]
[377995407,1754656237886,-788.3,0.0001876,2]
[377995408,1754656237895,-494.17,0.0001876,2]
[377995409,1754656237904,-400.0,0.0001876,2]
[377995410,1754656237914,-750.88,0.0001876,2]
[377995411,1754656237923,-520.87,0.0001876,2]
[377995412,1754656237933,-628.19,0.0001876,2]
[377995413,1754656237942,-609.59,0.0001876,2]
[377995414,1754656237951,-482.42,0.0001876,2]
[377995415,1754656237962,-615.03,0.0001876,2]
[377995416,1754656237971,-887.41,0.0001876,2]
[377995417,1754656237980,-1130.83,0.0001876,2]
[377995418,1754656237990,-893.65,0.0001876,2]
[377995419,1754656237999,-753.32,0.0001876,2]
[377995420,1754656238008,-3609.8,0.0001876,2]
[377995421,1754656238018,-998.02,0.0001876,2]
[377995422,1754656238028,-400.0,0.0001876,2]
[377995423,1754656238037,-618.84,0.0001876,2]
[377995424,1754656238047,-932.08,0.0001876,2]
[377995425,1754656238057,-400.0,0.0001876,2]
[377995426,1754656238068,-991.2,0.0001876,2]
[377995427,1754656238077,-400.0,0.0001876,2]
[377995428,1754656238086,-733.43,0.0001876,2]
[377995429,1754656238096,-203.618141,0.0001876,2]
[377995430,1754656238105,-400.0,0.0001876,2]
[377995431,1754656238115,-1116.5,0.0001876,2]
[377995432,1754656238125,-643.46,0.0001876,2]
[377995433,1754656238134,-632.39,0.0001876,2]
[377995434,1754656238143,-899.65,0.0001876,2]
[377995435,1754656238153,-408.92,0.0001876,2]
[377995436,1754656238162,-1627.73,0.0001876,2]
[377995437,1754656238171,-400.0,0.0001876,2]
[377995438,1754656238180,-400.0,0.0001876,2]
[377995439,1754656238189,-266.658315,0.0001876,2]
[377995440,1754656238198,-400.0,0.0001876,2]
[377995441,1754656238208,-230.574856,0.0001876,2]